Cogmind - Beta 14 @@@ ROGUE MODE // 2024.08.20 @ 04:08:27 Player: Decinym Result: Destroyed by Vortex Trap Performance ------------- Evolutions (4) 2000 Regions Visited (6) 1200 Robots Destroyed (121) 605 Value Destroyed (3994) 3994 Prototype IDs (16) 320 Alien Tech Used (0) 0 Bonus (2502) 2502 TOTAL SCORE: 10621 Bonus ------- High Alert Combat Kills 458 Follower Combat Kills 100 Delivered SUBCON Basin 2000 Registered with UFD 300 Friendly Fire -356 Cogmind --------- Core Integrity 0/850 Matter 201/300 Energy 100/100 System Corruption 20% Temperature Cool (0) Movement Core (50) Location -6/Factory Parts ------- > --- POWER (2) -------- (None) > --- PROPULSION (4) --- (None) > --- UTILITY (7) ------ (None) > --- WEAPON (2) ------- (None) > --- INVENTORY (5) ---- Cargo Legs CPS Tube (2) CPS Tube (2) Peak State ------------ > --- POWER ------------ Reinforced Deuterium Engine Enhanced Nuclear Core > --- PROPULSION ------- Armored Treads Medium Treads Medium Treads Improved Medium Treads > --- UTILITY ---------- High-capacity Storage Unit Machine Analyzer Hacking Suite Tech Extrapolator > --- WEAPON ----------- Flak Gun Heavy Machine Gun > --- INVENTORY -------- Improved Ion Engine Light Treads Cargo Legs Experimental Terrain Scanner Improved Particle Charger Improved System Shield Heavy Laser Thermic Laser Improved Proton Missile Launcher Missile Launcher Remote Datajack CPS Tube CPS Tube CPS Tube Multitool Vortex Trap DRS Beacon [Rating: 54] Favorites ----------- Power Ion Engine Engine Ion Engine Power Core Fission Core Propulsion Light Treads Treads Light Treads Leg Aluminum Leg Wheel Subdweller Monowheel Utility High-capacity Storage Unit Device Structural Scanner Storage High-capacity Storage Unit Processor Tech Extrapolator Hackware Hacking Suite Protection Light Armor Plating Weapon Subdweller Beam Cannon Energy Gun Beamcaster Energy Cannon Subdweller Beam Cannon Ballistic Gun Shotgun Launcher Grenade Launcher Special Weapon Mining Laser Build | -11 -10 -10 -10 -9 -9 -6 ------- Run | Yrd Mat Min Sub Rec Scr Fac Slots Evolved 8 | . . . . . . 8 Power 1 | . . . . . . 1 Propulsion 2 | . . . . . . 2 Utility 5 | . . . . . . 5 Weapon . | . . . . . . . Parts Attached 104 | . 8 1 35 4 9 47 Power 10 | . . . 1 1 1 7 Engine 6 | . . . 1 1 . 4 Core 4 | . . . . . 1 3 Reactor . | . . . . . . . Propulsion 28 | . 3 . 8 2 2 13 Treads 23 | . 2 . 4 2 2 13 Leg 3 | . 1 . 2 . . . Wheel 2 | . . . 2 . . . Hover . | . . . . . . . Flight . | . . . . . . . Utility 19 | . 3 . 3 1 3 9 Device 6 | . 2 . . . 2 2 Storage 3 | . 1 . 1 . . 1 Processor 3 | . . . . . . 3 Hackware 1 | . . . . . . 1 Protection 6 | . . . 2 1 1 2 Artifact . | . . . . . . . Weapon 47 | . 2 1 23 . 3 18 Energy Gun 9 | . . . 3 . 1 5 Energy Cannon 6 | . . . 4 . . 2 Ballistic Gun 16 | . 2 . 8 . 1 5 Ballistic Cannon . | . . . . . . . Launcher 11 | . . . 6 . . 5 Special Weapon 5 | . . 1 2 . 1 1 Impact Weapon . | . . . . . . . Slashing Weapon . | . . . . . . . Piercing Weapon . | . . . . . . . Special Melee Weapon . | . . . . . . . Unidentified Prototypes 1 | . . . . . . 1 Corrupted Parts 3 | . . . . . . 3 System Corruption 15 | . . . . . . 15 Parts Lost 40 | . 1 . 8 . . 31 Power 6 | . . . 1 . . 5 Propulsion 12 | . . . 4 . . 8 Utility 9 | . 1 . 2 . . 6 Weapon 13 | . . . 1 . . 12 Highest Loss Streak 10 | . 1 . 5 . . 10 To Critical Strikes . | . . . . . . . Average Slot Usage (%) 95 | . 99 100 99 95 96 81 Engine 11 | . 14 14 13 14 7 6 Core 2 | . . . . . 6 5 Treads 25 | . 17 28 25 26 28 23 Leg 1 | . 10 . . . . . Device 5 | . 13 14 1 . 8 5 Storage 13 | . 14 14 14 14 14 6 Processor 1 | . . . . . . 14 Protection 7 | . . . 11 14 5 1 Energy Gun 6 | . . . 5 9 10 4 Energy Cannon 6 | . . . 8 14 7 . Ballistic Gun 9 | . 27 27 11 . 6 4 Peak Build Rating 54 | . 12 12 33 33 28 54 Average Rating 21 | . 11 11 15 26 21 47 On Entrance 15 | 6 6 12 11 33 11 28 Naked Turns 8 | . . . . . . 8 Heaviest Build 88 | 14 53 53 61 63 61 88 Greatest Support 98 | 20 40 40 40 40 53 98 Greatest Overweight (x) 4 | . 1 1 4 3 1 1 Average Overweight (x) 1 | . . 1 1 1 1 . Largest Inventory Capacity 20 | . 20 20 20 20 20 20 Average Capacity 19 | . 14 20 20 20 20 19 Most Carried 20 | . 17 19 20 20 20 20 Average Carried 17 | . 10 18 19 16 17 17 Final Capacity 20 | 8 20 20 20 20 20 5 Final Carried 20 | 6 17 19 20 9 20 4 Class Distribution -------------------- 47% | Mutant 34% | Commander-Mutant 17% | Scavenger-Mutant Dominant Class ---------------- Mutant | -10/Materials Mutant | -10/Mines Mutant | -10/Subcaves Commander-Mutant | -9/Recycling Commander-Mutant | -9/Scraptown Scavenger-Mutant | -6/Factory Resources | -11 -10 -10 -10 -9 -9 -6 ----------- Run | Yrd Mat Min Sub Rec Scr Fac Matter Collected 2673 | 200 569 91 766 55 80 912 Remotely . | . . . . . . . Salvage Created 4518 | . 825 73 1024 266 . 2330 Parts 243 | . 52 . 64 20 . 107 Haulers Intercepted 5 | . 2 . . . . 3 Recyclers Shooed 6 | . 1 . . 1 . 4 Parts Field Recycled . | . . . . . . . Retrieved Matter . | . . . . . . . Parts Self-Destructed 9 | . . . 9 . . . Prevented . | . . . . . . . Kills | -11 -10 -10 -10 -9 -9 -6 ------- Run | Yrd Mat Min Sub Rec Scr Fac Combat Hostiles Destroyed 93 | . 17 6 29 5 . 36 Guns 56 | . 17 6 13 4 . 16 Cannons 7 | . . . 4 1 . 2 AOE 27 | . . . 11 . . 16 Classes Destroyed 20 | . 7 1 4 1 . 7 Worker 11 | . 1 . . . . 10 Builder 6 | . 1 . . . . 5 Tunneler 1 | . . . . . . 1 Hauler 5 | . 2 . . . . 3 Recycler 7 | . 3 . . . . 4 Mechanic 1 | . . . . . . 1 Operator 1 | . . . . . . 1 Turret 2 | . . . 2 . . . Watcher 3 | . 2 . . . . 1 Swarmer 18 | . 6 . 4 . . 8 Grunt 30 | . 11 . . 1 . 18 Brawler 1 | . . . . . . 1 Protector 2 | . . . . . . 2 Sentry 7 | . . . . 4 . 3 Programmer 2 | . . . . . . 2 Heavy 3 | . . . . . . 3 Artisan 2 | . . . 2 . . . Subdweller 25 | . . . 25 . . . Assembled 6 | . . 6 . . . . Guerrilla 1 | . . . 1 . . . Best Kill Streak 13 | . 7 3 8 1 . 13 Combat Bots Only 8 | . 5 3 8 1 . 6 Max Kills in Single Turn 5 | . 2 1 4 1 . 5 Gunslinging 1 | . 1 . . . . . Exploded 4 | . . . 4 . . 4 Melee . | . . . . . . . Uniques/NPCs Destroyed . | . . . . . . . Combat | -11 -10 -10 -10 -9 -9 -6 -------- Run | Yrd Mat Min Sub Rec Scr Fac Hostile Shots Fired 526 | . 53 12 103 9 . 349 Missed 162 | . 17 4 28 4 . 109 Damage Taken 6744 | . 255 116 1380 60 . 4933 Core 1055 | . 29 43 97 . . 886 Absorbed by Shields 282 | . 102 43 58 . . 79 Regen/Repaired (Parts) 679 | . . . . . 292 387 Core Remaining (%) 66 | 100 . . . . 32 . Volleys Fired 326 | . 43 18 130 11 . 124 Largest 2 | . 2 2 2 2 . 2 Hottest 155 | . 46 100 155 155 . 128 Shots Fired 523 | . 86 31 183 18 . 205 Gun 400 | . 86 26 99 11 . 178 Cannon 62 | . . . 43 7 . 12 Launcher 41 | . . . 27 . . 14 Special 20 | . . 5 14 . . 1 Kinetic 267 | . 86 26 59 . . 96 Thermal 208 | . . 5 97 18 . 88 Explosive 29 | . . . 27 . . 2 Electromagnetic 18 | . . . . . . 18 Robot Hit Streak 15 | . 5 5 12 7 . 15 Robot Miss Streak 12 | . 5 2 2 1 . 12 Penetration Max . | . . . . . . . Secondary Targets 8 | . 4 . 1 . . 3 Max Gunslinging Chain 1 | . 1 . 1 . . 1 Shots Hit Robots 319 | . 59 20 80 12 . 148 Core Hits 262 | . 45 12 55 5 . 145 Critical Kills 3 | . 1 . 2 . . . Critical Parts Destroyed 4 | . 1 1 1 . . 1 Critical Strikes 9 | . 2 1 4 . . 2 Burn 2 | . . . 1 . . 1 Meltdown 1 | . . . 1 . . . Destroy 6 | . 2 1 2 . . 1 Melee Attacks . | . . . . . . . Impact . | . . . . . . . Slashing . | . . . . . . . Piercing . | . . . . . . . Sneak Attacks . | . . . . . . . Combat Hostiles . | . . . . . . . Follow-up Attacks . | . . . . . . . Damage Inflicted 11211 | . 895 276 3016 290 . 6734 Guns 4721 | . 891 276 933 179 . 2442 Cannons 832 | . . . 492 111 . 229 Explosions 5624 | . . . 1591 . . 4033 Melee . | . . . . . . . Ramming 34 | . 4 . . . . 30 Kinetic 3990 | . 891 276 597 . . 2226 Thermal 3197 | . . . 828 290 . 2079 Explosive 3382 | . . . 1591 . . 1791 Electromagnetic 608 | . . . . . . 608 Impact . | . . . . . . . Slashing . | . . . . . . . Piercing . | . . . . . . . Highest Corruption 20 | . . . . 1 . 20 Average Corruption 7 | . . . . 1 . 15 Corruption Purged 5 | . . . . . . 5 Corruption Blocked . | . . . . . . . Effects 60 | . . . . 7 . 53 Message Errors 9 | . . . . . . 9 Matter Fused 12 | . . . . 1 . 11 Heat Flow Errors 8 | . . . . 3 . 5 Energy Discharges 8 | . . . . . . 8 Parts Rejected 3 | . . . . . . 3 Parts Fused 1 | . . . . . . 1 Data Loss (minor) 6 | . . . . 2 . 4 Data Loss (major) 1 | . . . . . . 1 Misfires 5 | . . . . . . 5 Alerts 2 | . . . . 1 . 1 Misdirections 1 | . . . . . . 1 Weapon Failures 4 | . . . . . . 4 Overload Shots . | . . . . . . . Overflow Damage 284 | . . . 11 . . 273 Projectiles 16 | . . . . . . 16 Explosions 268 | . . . 11 . . 257 Melee . | . . . . . . . Knockbacks . | . . . . . . . Impact . | . . . . . . . Kinetic . | . . . . . . . Secondary . | . . . . . . . Self-Inflicted Damage 673 | . . . 21 . . 652 Shots 10 | . . . 1 . . 9 Rammed 2 | . . . . . . 2 Targets Rammed 3 | . 1 . . . . 2 Kicked 1 | . 1 . . . . . Crushed . | . . . . . . . Highest Temperature 466 | . 3 40 192 249 . 466 Average Temperature 68 | . 1 15 41 93 . 74 Received Heat Transfer 1337 | . 97 57 196 33 . 954 Siege Activations . | . . . . . . . Robots Corrupted 1 | . . . . . . 1 Combat Hostiles 1 | . . . . . . 1 Parts Fried 2 | . . . . . . 2 Impact Corruptions . | . . . . . . . Robots Melted 2 | . . . 1 . . 1 Combat Hostiles 2 | . . . 1 . . 1 Parts Melted 12 | . . . 4 . . 8 Heat Transferred 4864 | . . . 1332 444 . 3088 Parts Sabotaged . | . . . . . . . Parts Stolen . | . . . . . . . Parts Stripped . | . . . . . . . Power Chain Reactions 1 | . . . . . . 1 Alert | -11 -10 -10 -10 -9 -9 -6 ------- Run | Yrd Mat Min Sub Rec Scr Fac Peak Influence 1368 | . 234 19 . 151 . 1368 Initial 19 | . . 19 . . . . Average 153 | . 81 12 . 26 . 412 Maximum Alert Level 4 | . 1 . . . . 4 Low Security (%) 76 | . 92 100 . 100 . 29 Level 1 8 | . 7 . . . . 22 Level 2 11 | . . . . . . 38 Level 3 1 | . . . . . . 3 Level 4 1 | . . . . . . 6 Level 5 . | . . . . . . . High Security . | . . . . . . . Max Security . | . . . . . . . Squads Dispatched 16 | . 3 . . . . 13 Investigation 3 | . 2 . . . . 1 Extermination 2 | . . . . . . 2 Reinforcement 10 | . 1 . . . . 9 Assault . | . . . . . . . Garrison 1 | . . . . . . 1 Intercept . | . . . . . . . Searches Triggered . | . . . . . . . Construction Impeded 2 | . . . . . . 2 Haulers Reinforced 2 | . . . . . . 2 Active Scanning Responses . | . . . . . . . Cargo Convoy Interrupts 1 | . . . . . . 1 Stealth | -11 -10 -10 -10 -9 -9 -6 --------- Run | Yrd Mat Min Sub Rec Scr Fac Distress Signals 3 | . 1 2 . . . . Communications Jammed . | . . . . . . . Distress Signals . | . . . . . . . Times Spotted 120 | . 22 6 39 4 . 49 Peak Tracking Total 8 | . 8 2 6 2 . 5 Tactical Retreats 3 | . . . 1 . . 2 Traps | -11 -10 -10 -10 -9 -9 -6 ------- Run | Yrd Mat Min Sub Rec Scr Fac Traps Triggered 5 | . 2 . 2 . . 1 Indirectly . | . . . . . . . Trap Hack Attempts . | . . . . . . . Triggered . | . . . . . . . Disarmed . | . . . . . . . Reprogrammed . | . . . . . . . Reused . | . . . . . . . Traps Extracted . | . . . . . . . Installed 1 | . . . . . . 1 Triggered 1 | . . . . . . 1 Most Traps Carried 1 | . . . . . 1 1 Machines | -11 -10 -10 -10 -9 -9 -6 ---------- Run | Yrd Mat Min Sub Rec Scr Fac Machines Disabled 50 | . . . 3 . . 47 Max in Single Turn 7 | . . . 2 . . 7 Machines Repaired . | . . . . . . . Machines Dismantled . | . . . . . . . Machines Sabotaged . | . . . . . . . Overloaded Fab Kills . | . . . . . . . Hacking | -11 -10 -10 -10 -9 -9 -6 --------- Run | Yrd Mat Min Sub Rec Scr Fac Machines Accessed 27 | . 4 . 3 11 2 7 Terminals 14 | . 4 . . 6 . 4 Fabricators 1 | . . . . . . 1 Repair Stations 1 | . . . . . . 1 Recycling Units 6 | . . . . 5 . 1 Scanalyzers . | . . . . . . . Garrison Access . | . . . . . . . Total Hacks 62 | . 11 . 8 20 6 17 Successful 32 | . 4 . 8 9 6 5 Failed 29 | . 6 . . 11 . 12 Catastrophic 5 | . 1 . . . . 4 Database Lockouts 1 | . 1 . . . . . Manual 23 | . 7 . . 13 . 3 Terminals 32 | . 11 . . 13 . 8 Fabricators 2 | . . . . . . 2 Repair Stations 6 | . . . . . . 6 Recycling Units 8 | . . . . 7 . 1 Scanalyzers . | . . . . . . . Garrison Access . | . . . . . . . Terminal Hacks 22 | . 4 . 8 4 6 . Record 11 | . . . 6 . 5 . Robot Analysis 1 | . 1 . . . . . Open Door 1 | . . . 1 . . . Terminal Index 1 | . 1 . . . . . Hauler Manifests 1 | . . . . 1 . . Zone Layout 5 | . 2 . . 3 . . Derelict Proto ID Bank 1 | . . . . . 1 . Release Object 1 | . . . 1 . . . Fabricator Hacks . | . . . . . . . Repair Station Hacks 5 | . . . . . . 5 Scan Component 2 | . . . . . . 2 Repair 2 | . . . . . . 2 Refit 1 | . . . . . . 1 Recycling Unit Hacks . | . . . . . . . Scanalyzer . | . . . . . . . Garrison Access Hacks . | . . . . . . . Unauthorized Hacks 5 | . . . . 5 . . Terminals . | . . . . . . . Fabricators . | . . . . . . . Repair Stations . | . . . . . . . Recycling Units 5 | . . . . 5 . . Tunnel 5 | . . . . 5 . . Scanalyzers . | . . . . . . . Garrison Access . | . . . . . . . Data Cores Recovered . | . . . . . . . Used . | . . . . . . . Hacking Detections 16 | . 4 . . 6 . 6 Full Trace Events 3 | . . . . 2 . 1 Feedback Events 1 | . . . . 1 . . Corruption 1 | . . . . 1 . . Feedback Blocked . | . . . . . . . Robot Schematics Acquired . | . . . . . . . Robots Built . | . . . . . . . Authchips . | . . . . . . . Time . | . . . . . . . Total Robot Build Rating . | . . . . . . . Part Schematics Acquired 13 | . . . . . . 13 Parts Built . | . . . . . . . Authchips . | . . . . . . . Time . | . . . . . . . Total Part Build Rating . | . . . . . . . Parts Repaired 2 | . . . . . . 2 Time 88 | . . . . . . 88 Parts Recycled . | . . . . . . . Recycled Matter . | . . . . . . . Retrieved Matter . | . . . . . . . Retrieved Components . | . . . . . . . Parts Scanalyzed . | . . . . . . . Part Schematics Acquired . | . . . . . . . Parts Damaged . | . . . . . . . Bothacking | -11 -10 -10 -10 -9 -9 -6 ------------ Run | Yrd Mat Min Sub Rec Scr Fac Used RIF Installer . | . . . . . . . Robots Hacked . | . . . . . . . Non-combat . | . . . . . . . Combat . | . . . . . . . Robot Hacks Applied . | . . . . . . . Relay Couplers Released . | . . . . . . . Fabnet Peak Effective % . | . . . . . . . Robots Rewired 16 | . . . . 16 . . Allies Hacked . | . . . . . . . Hacks Repelled . | . . . . . . . Allies | -11 -10 -10 -10 -9 -9 -6 -------- Run | Yrd Mat Min Sub Rec Scr Fac Total Allies 16 | . . . . 16 . . Largest Group 16 | . . . . 16 16 16 Highest-Rated Group 195 | . . . . 195 195 195 Highest-Rated Ally 34 | . . . . 34 34 34 Total Orders . | . . . . . . . Ally Attacks 35 | . . . . 2 . 33 Total Damage 567 | . . . . 17 . 550 Kills 7 | . . . . 1 . 6 Allies Corrupted . | . . . . . . . Allies Melted . | . . . . . . . Intel | -11 -10 -10 -10 -9 -9 -6 ------- Run | Yrd Mat Min Sub Rec Scr Fac Robot Analysis Total 1 | . 1 . . . . . Derelict Logs Recovered 4 | . . . 2 . 2 . Drone Launches . | . . . . . . . Drone Recoveries . | . . . . . . . Exploration | -11 -10 -10 -10 -9 -9 -6 ------------- Run | Yrd Mat Min Sub Rec Scr Fac Turns Passed 15049 | . 1528 595 5012 2144 3967 1803 Spaces Moved 6284 | 1 774 151 2038 899 1637 784 Core 10 | . . . . . . 10 Treads 5173 | . 373 151 1547 691 1637 774 Legs 411 | 1 401 . 9 . . . Wheels 690 | . . . 482 208 . . Hover . | . . . . . . . Flight . | . . . . . . . Fastest Speed 50 | 120 120 240 130 140 240 50 Average Speed 214 | 120 174 240 224 216 240 168 Slowest Speed 400 | 120 240 240 400 240 240 245 Overloaded Moves . | . . . . . . . Propulsion Burnouts . | . . . . . . . Robots Hopped . | . . . . . . . Cave-ins Triggered . | . . . . . . . Exploration Rate (%) 59 | 2 82 19 97 98 92 29 Regions Visited 6 Branch Regions 4 Pre-discovered Areas 8 | . . . 2 5 1 . Known Exits Taken . | . . . . . . . Unknown Exits Taken 6 | 1 1 1 1 1 1 . Scrap Searched 12 | . . . 2 . 10 . Spaces Dug 83 | . . . 83 . . . Terrain Destroyed 443 | . . . 185 3 . 255 Melee . | . . . . . . . Projectile 14 | . . . 11 3 . . AOE 429 | . . . 174 . . 255 Terrain Rammed . | . . . . . . . Walls Destroyed . | . . . . . . . Machines Disabled . | . . . . . . . Actions | -11 -10 -10 -10 -9 -9 -6 --------- Run | Yrd Mat Min Sub Rec Scr Fac Total 7281 | . 869 343 2256 1078 1678 1057 Wait 284 | . 21 172 12 6 . 73 Move 6278 | . 773 150 2037 898 1636 784 Hop . | . . . . . . . Pick Up 76 | . 15 2 15 5 22 17 Fast Attach 24 | . 4 . 4 1 1 14 Attach 39 | . 2 . 11 . 1 25 Detach 3 | . . . 1 . 1 1 Swap 41 | . 2 1 20 3 7 8 Drop 59 | . 8 . 26 7 10 8 Fire 326 | . 43 18 130 11 . 124 Melee . | . . . . . . . Ram . | . . . . . . . Kick 1 | . 1 . . . . . Crush 2 | . . . . . . 2 Escape Stasis . | . . . . . . . Rewire 147 | . . . . 147 . . Trap 1 | . . . . . . 1 Miscellaneous . | . . . . . . . Route ------- -11/Scrapyard -10/Materials (discovered 3 exits: [*Mat x2] / [*Min]) -10/Mines -10/Subcaves (discovered 3 exits: [*Mat x2] / *Rec) -9/Recycling (discovered 2 exits: [*Fac] / *Scr) -9/Scraptown (discovered 2 exits: *Fac x2) -6/Factory (discovered 4 exits: [*Fac x3] / Low) History --------- Turn | Location | Event 1 | -11/Scrapyard | Discovered new exit (range 0) 1 | -11/Scrapyard | Entered Materials 178 | -10/Materials | Discovered new exit (range 4) 316 | -10/Materials | Build established: Mutant 424 | -10/Materials | Discovered new exit (range 5) 458 | -10/Materials | Discovered new exit (range 13) 478 | -10/Materials | Central database locked down 1529 | -10/Materials | Entered Mines 1530 | -10/Mines | Assembled infested the area 1544 | -10/Mines | Met a Derelict bent on vengeance 2115 | -10/Mines | Discovered new exit (range 4) 2124 | -10/Mines | Entered Subcaves 2352 | -10/Subcaves | Ambushed by swarm of Subdwellers 2353 | -10/Subcaves | Ambushed by Subdwellers from Twisted Machinery 2358 | -10/Subcaves | Ambushed by Subdwellers from Twisted Machinery 2360 | -10/Subcaves | Ambushed by Subdweller buried in earth 2391 | -10/Subcaves | Destroyed 8 combat bots 2433 | -10/Subcaves | A swath of the cavern ceiling suddenly collapsed 2780 | -10/Subcaves | Shifting Twisted Machinery released Battle Rifle 2783 | -10/Subcaves | Shifting Twisted Machinery released Scrap Shield 2920 | -10/Subcaves | Shifting Twisted Machinery released Sub. Laser 2929 | -10/Subcaves | Shifting Twisted Machinery released Sub. Power Source 2941 | -10/Subcaves | Discovered new exit (range 12) 3214 | -10/Subcaves | Discovered new exit (range 10) 4289 | -10/Subcaves | Ambushed by Subdweller buried in earth 4345 | -10/Subcaves | Discovered new exit (range 11) 5042 | -10/Subcaves | Core integrity fell below 50% 5074 | -10/Subcaves | A Subdweller sparked back to life 5074 | -10/Subcaves | A Subdweller sparked back to life 5074 | -10/Subcaves | A Subdweller sparked back to life 5109 | -10/Subcaves | Lost 5 parts (1p2n1u1w) 5122 | -10/Subcaves | Found Prototype Leg 5783 | -10/Subcaves | A swath of the cavern ceiling suddenly collapsed 5814 | -10/Subcaves | Visited Clippyterm 5821 | -10/Subcaves | Learned location of Section 7 (-2) 6099 | -10/Subcaves | Ambushed by angry Subdweller bent on revenge 6203 | -10/Subcaves | Disturbed a concealed Subdweller 6505 | -10/Subcaves | Ambushed by Subdweller buried in earth 6539 | -10/Subcaves | Ambushed by Subdweller buried in earth 6543 | -10/Subcaves | Ambushed by Subdweller buried in earth 6648 | -10/Subcaves | Found SUBCON Basin 7136 | -10/Subcaves | Entered Recycling 7309 | -9/Recycling | Discovered new exit (range 18) 7734 | -9/Recycling | Build established: Scavenger-Mutant 7971 | -9/Recycling | Scanned before Scraplab entrance 8595 | -9/Recycling | Build established: Commander-Mutant 8599 | -9/Recycling | Entered Scraplab 8759 | -9/Recycling | Discovered new exit (range 4) 9280 | -9/Recycling | Entered Scraptown 9280 | -9/Scraptown | Accompanied by 16 allies 9280 | -9/Scraptown | System corruption cleaned by C-Scrubber 9541 | -9/Scraptown | Heard Great Nut preacher, LISTEN AND RECITE! 9762 | -9/Scraptown | Discovered new exit (range 5) 9848 | -9/Scraptown | Scanned Subdweller tech in exchange for log data 9856 | -9/Scraptown | Learned location of Extension (-6) 10113 | -9/Scraptown | Visited Bundlers 10291 | -9/Scraptown | Visited Cyclists 10349 | -9/Scraptown | Visited SPCMW 11129 | -9/Scraptown | Visited Fellowship of the Rings 11265 | -9/Scraptown | Visited Assassins FH 11309 | -9/Scraptown | Visited CR-KLE's Repair Center 11347 | -9/Scraptown | CR-KLE repaired 6 parts 11426 | -9/Scraptown | Visited UFD Registry 11426 | -9/Scraptown | Registered with UFD as "Fluxbot" 11486 | -9/Scraptown | Visited Infowarlord's Domain 11524 | -9/Scraptown | Visited LU-1G1's Boring Crew 11771 | -9/Scraptown | Delivered Scrap Shield to a Scientist 12021 | -9/Scraptown | Visited Junk Repository 12104 | -9/Scraptown | Visited DA-N13 Charitable Foundation 12126 | -9/Scraptown | Found DCF Scrap (28 items) 12329 | -9/Scraptown | Visited Curators Association 12430 | -9/Scraptown | Visited Abandonware Association 12478 | -9/Scraptown | Learned abandonware demo "KABOOM.EXE" 12478 | -9/Scraptown | Learned abandonware demo "MELTYB.EXE" 12550 | -9/Scraptown | Visited Science Guys 12705 | -9/Scraptown | Visited Junk Repository 12846 | -9/Scraptown | Found Exp. Terrain Scanner 12965 | -9/Scraptown | Visited Derelict Rescue Squad 12980 | -9/Scraptown | Found DRS Beacon 13226 | -9/Scraptown | Discovered new exit (range 5) 13247 | -9/Scraptown | Entered Factory 13247 | -6/Factory | Accompanied by 16 allies 13247 | -6/Factory | Evolved 8 slots: Power x1, Propulsion x2, Utility x5 13248 | -6/Factory | Identified exit to Lower Caves 13329 | -6/Factory | Lost 6 allies 13427 | -6/Factory | Lost 3 allies 13546 | -6/Factory | Lost 4 allies 13632 | -6/Factory | Tech Extrapolator generated special schematic: Machine Rigger 13705 | -6/Factory | Discovered new exit (range 5) 13775 | -6/Factory | Garrison activated, responded to threat 13807 | -6/Factory | Lost 6 parts (1n2u3w) 13839 | -6/Factory | Build established: Scavenger-Mutant 14038 | -6/Factory | System corruption reached 10% 14066 | -6/Factory | Lost 4 parts (2n2w) 14325 | -6/Factory | Repaired Imp. Medium Treads 14374 | -6/Factory | Repaired Arm. Treads 14499 | -6/Factory | Lost 3 parts (1p2u) 14653 | -6/Factory | Cargo convoy interrupted 14806 | -6/Factory | Discovered new exit (range 5) 14992 | -6/Factory | Discovered new exit (range 7) 15002 | -6/Factory | Core integrity fell below 50% 15029 | -6/Factory | Lost 10 parts (2p4n4w) 15042 | -6/Factory | Released all parts (3) 15046 | -6/Factory | Core integrity fell below 20% 15050 | -6/Factory | Destroyed by Vortex Trap Last Messages --------------- 15045_ K-01 Serf collects debris. 15045_ G-50 Soldier IFF system glitched. 15045_ U-05 Engineer lays Concrete. 15045_ Knocked back. 15046_ U-05 Engineer lays Concrete. 15047_ Acquired 46 matter. 15047_ H-66 Slayer IFF system glitched. 15047_ U-05 Engineer lays Concrete. 15048_ Knocked back. 15048_ U-05 Engineer lays Concrete. 15049_ Dropped Vortex Trap. 15049_ K-01 Serf collects debris. 15049_ U-05 Engineer lays Concrete. 15049_ Installed Vortex Trap. 15050_ System corrupted: Component data lost. 15050_ U-05 Engineer suffers critical hit (Blast). 15050_ U-05 Engineer destroyed. 15050_ U-05 Engineer lays Concrete. 15050_ Triggered Vortex Trap. 15050_ A wave of accelerated entropy washes over the area. Map ----- +----------------------------------------------------+ | # """ """ """ #??????????????????????????????? | | # ?? #??????????????????????????????? | | " """ """ #??????????????????????????????? | | """ #??????????????????????????????? | | " ???????????????????????????????? | | ????????????????????????????????? | | ??????????????????????????????? | | ?????????????????T?"""""""?""""" | | ##??????????????????"""""""?""""" | | ##??????????????????"""""""?""""" | | #??????????????????"""""""?""""" | | #??????????????????????????????? | | ########???????? ?""""????""""" | | * ;;;;######### ?""""????""""" | | %= ] ?""""????""""" | | # ! ! / ?????????""""" | | ## % k ??????????????? | | ?# u%! ???????????????? | | ?#= | / ?????????????????? | | ?# ;####+####???????????? | | ##" #######"; !;# * ??????????? | | ; % ; ?????????? | | ; =!! ;#?? !! ?????????? | | ; !%| ! % % #! !! ????????? | | ; % !& !%! !! ????????? | | ; %|!|% @H # = ????????? | | # !; g=h #?? ??????????? | | ; ####*%= #"""?""" """????????? | | # #??# < #"R??"""?"""????????? | | # #??# #"""?"""?"""????????? | | ""#### #??# #"""????????????????? | | ###??####+####??### ###???????????????????? | | ###???????? ???????? #?????????????????????? | | ######?????????? ??????? #?????????????????????? | | ????????????"""?""" ??????m#?????????????????????? | | ????????????"""?""" ?????? ?????????????????????? | | ????????????"""?""" ?????##?????????????????????? | | ????????????????????? ???????????????????????????? | | ????????????"""?"""?? ???????????????????????????? | | ????????????"""?"""??????????????????????????????? | | ????????????"""?"""??????????????????????????????? | | ?????????????????????????????????????????????????? | | ?????????????????????????????????????????????????? | | ?????????????????????????????????????????????????? | | ?????????????????????????????????????????????????? | | ?????????????????????????????????????????????????? | | | | | | | | | +----------------------------------------------------+ Best States ------------- Heat Dissipation 59 Energy Generation 28 Energy Capacity 490 Matter Stores 300 Matter Capacity 300 Sight Range 22 Terrain Scan Density 10 Armor Coverage 600 Evasion (%) 55 Recoil Reduction 4 Offensive Hacking 10 Item Schematics ----------------- Mak. Terrain Scanner | -6/Factory | Extrapolated Mak. Coolant Network | -6/Factory | Extrapolated Mak. Leg | -6/Factory | Extrapolated Mak. Light Armor Plating | -6/Factory | Extrapolated Machine Rigger | -6/Factory | Extrapolated Beamcaster | -6/Factory | Extrapolated Hvy. Beamcaster | -6/Factory | Extrapolated Barrage Gun | -6/Factory | Extrapolated 0b10 Decoder Chip [Generic] | -6/Factory | Extrapolated 0b10 Decoder Chip [Scout] | -6/Factory | Extrapolated 0b10 Decoder Chip [Skirmisher] | -6/Factory | Extrapolated Mak. System Shield | -6/Factory | Extrapolated Ripper | -6/Factory | Extrapolated Robot Schematics ------------------ None Fabricated ------------ Nothing Alien Tech Used ----------------- None Achievements -------------- None Challenges ------------ None Game ------ Seed GodMiniShredder Manual? 0 Play Time 00:57:40 Cumulative 431.1 hours Start 2024.08.20 @ 03:11:26 End 2024.08.20 @ 04:08:27 Sessions 1 Manual Loads 0 Difficulty Rogue Special Mode None Game No. 434 Rogue 434 Adventurer 0 Explorer 0 Win Type - Total 31 Types 16/3/6/1/2/0/3/0/0 Lore% 85 Gallery% 88 Achievement% 82 Wizard Run 0 Options --------- Layout 0 ASCII 0 Keyboard 0 Movement Arrows Keybinds 0 Fullscreen 2 Font 24/Smallcaps Map View 76x50 Zoom Use 0% Tactical HUD 1 Map Filters NONE Filters NONE Steam 1 RUN: a164bbe5-abfe-476c-9dc7-a029ef0514e6